fUST/lending_fUST_20240218
["ID","MTS","AMOUNT","RATE_DAILY","PERIOD"]
[314346537,1708210238407,-604.47,0.00027397,2]
[314346538,1708210238416,-500.0,0.00027397,2]
[314346539,1708210238425,-500.0,0.00027397,2]
[314346540,1708210238434,-501.06074641,0.00027397,2]
[314346541,1708210238443,-630.28434313,0.00027397,2]
[314346542,1708210238452,-469.50533681,0.00027397,2]
[314346543,1708210238461,-500.0,0.00027397,2]
[314346544,1708210238470,-500.0,0.00027397,2]
[314346545,1708210238479,-503.86860364,0.00027397,2]
[314346546,1708210238488,-500.0,0.00027397,2]
[314346547,1708210238497,-505.48477638,0.00027397,2]
[314346548,1708210238506,-500.0,0.00027397,2]
[314346549,1708210238515,-541.41043922,0.00027397,2]
[314346550,1708210238524,-500.0,0.00027397,2]
[314346551,1708210238533,-500.0,0.00027397,2]
[314346552,1708210238542,-500.0,0.00027397,2]
[314346553,1708210238552,-503.5333913,0.00027397,2]
[314346554,1708210238561,-500.0,0.00027397,2]
[314346555,1708210238570,-506.45631732,0.00027397,2]
[314346556,1708210238579,-500.0,0.00027397,2]
[314346557,1708210238588,-500.0,0.00027397,2]
[314346558,1708210238597,-500.0,0.00027397,2]
[314346559,1708210238606,-500.0,0.00027397,2]
[314346560,1708210238615,-500.0,0.00027397,2]
[314346561,1708210238624,-500.0,0.00027397,2]
[314346562,1708210238633,-518.6324567,0.00027397,2]
[314346563,1708210238642,-563.48,0.00027397,2]
[314346564,1708210238651,-466.09670805,0.00027397,2]
[314346565,1708210238660,-521.96,0.00027397,2]
[314346566,1708210238668,-500.0,0.00027397,2]
[314346567,1708210238678,-500.0,0.00027397,2]
[314346568,1708210238687,-500.0,0.00027397,2]
[314346569,1708210238696,-500.0,0.00027397,2]
[314346570,1708210238705,-500.0,0.00027397,2]
[314346571,1708210238714,-205.90526803,0.00027397,2]
[314346572,1708210238724,-500.0,0.00027397,2]
[314346573,1708210238733,-500.0,0.00027397,2]
[314346574,1708210238743,-500.0,0.00027397,2]
[314346575,1708210238752,-500.0,0.00027397,2]
[314346576,1708210238761,-506.26113959,0.00027397,2]
[314346577,1708210238770,-500.0,0.00027397,2]
[314346578,1708210238779,-500.0,0.00027397,2]
[314346579,1708210238788,-500.0,0.00027397,2]
[314346580,1708210238798,-500.0,0.00027397,2]
[314346581,1708210238810,-500.0,0.00027397,2]
[314346582,1708210238819,-500.0,0.00027397,2]
[314346583,1708210238830,-500.0,0.00027397,2]
[314346584,1708210238840,-517.44050524,0.00027397,2]
[314346585,1708210238849,-500.0,0.00027397,2]
[314346586,1708210238858,-500.0,0.00027397,2]
[314346587,1708210238867,-500.0,0.00027397,2]
[314346588,1708210238875,-3514.22,0.00027397,2]
[314346589,1708210238885,-500.0,0.00027397,2]
[314346590,1708210238894,-500.0,0.00027397,2]
[314346591,1708210238903,-500.0,0.00027397,2]
[314346592,1708210238912,-2381.89,0.00027397,2]
[314346593,1708210238921,-500.0,0.00027397,2]
[314346594,1708210238930,-508.21353063,0.00027397,2]
[314346595,1708210238939,-506.76238936,0.00027397,2]
[314346596,1708210238948,-521.77890812,0.00027397,2]
[314346597,1708210238957,-500.0,0.00027397,2]
[314346598,1708210238966,-515.5926754,0.00027397,2]
[314346599,1708210238975,-500.0,0.00027397,2]
[314346600,1708210238983,-777.81,0.00027397,2]
[314346601,1708210238992,-500.0,0.00027397,2]
[314346602,1708210239000,-334.40704858,0.00027397,2]
[314346603,1708210239010,-500.0,0.00027397,2]
[314346604,1708210239019,-3537.22,0.00027397,2]
[314346605,1708210239028,-500.0,0.00027397,2]
[314346606,1708210239037,-500.0,0.00027397,2]
[314346607,1708210239046,-500.0,0.00027397,2]
[314346608,1708210239055,-500.0,0.00027397,2]
[314346609,1708210239064,-518.39092521,0.00027397,2]
[314346610,1708210239072,-500.0,0.00027397,2]
[314346611,1708210239081,-500.0,0.00027397,2]
[314346612,1708210239090,-503.77374689,0.00027397,2]
[314346613,1708210239099,-2545.31,0.00027397,2]
[314346614,1708210239108,-500.0,0.00027397,2]
[314346615,1708210239117,-850.89,0.00027397,2]
[314346616,1708210239127,-500.0,0.00027397,2]
[314346617,1708210239136,-4076.04,0.00027397,2]
[314346618,1708210239145,-500.0,0.00027397,2]
[314346619,1708210239156,-500.0,0.00027397,2]
[314346620,1708210239165,-500.0,0.00027397,2]
[314346621,1708210239175,-500.0,0.00027397,2]
[314346622,1708210239186,-500.0,0.00027397,2]
[314346623,1708210239195,-500.0,0.00027397,2]
[314346624,1708210239205,-500.0,0.00027397,2]
[314346625,1708210239214,-500.0,0.00027397,2]
[314346626,1708210239223,-672.49,0.00027397,2]
[314346627,1708210239232,-500.0,0.00027397,2]
[314346628,1708210239241,-500.0,0.00027397,2]
[314346629,1708210239250,-2391.4,0.00027397,2]
[314346630,1708210239259,-500.0,0.00027397,2]
[314346631,1708210239269,-500.0,0.00027397,2]
[314346632,1708210239278,-2317.01,0.00027397,2]
[314346633,1708210239288,-500.0,0.00027397,2]
[314346634,1708210239297,-502.26,0.00027397,2]
[314346635,1708210239306,-500.0,0.00027397,2]
[314346636,1708210239315,-665.62,0.00027397,2]
[314346637,1708210239324,-500.0,0.00027397,2]
[314346638,1708210239333,-500.0,0.00027397,2]
[314346639,1708210239343,-500.0,0.00027397,2]
[314346640,1708210239352,-500.0,0.00027397,2]
[314346641,1708210239361,-500.0,0.00027397,2]
[314346642,1708210239371,-500.0,0.00027397,2]
[314346643,1708210239380,-155.0,0.00027493,2]
[314346644,1708210239389,-1000.0,0.00027671,2]
[314346645,1708210239399,-500.0,0.00027671,2]
[314346646,1708210239495,-604.47,0.00027671,2]
[314346647,1708210239508,-500.0,0.00027671,2]
[314346648,1708210239520,-500.0,0.00027671,2]
[314346649,1708210239530,-500.0,0.00027671,2]
[314346650,1708210239538,-507.25023719,0.00027671,2]
[314346651,1708210239547,-500.0,0.00027671,2]
[314346652,1708210239558,-617.51,0.00027671,2]
[314346653,1708210239566,-500.0,0.00027671,2]
[314346654,1708210239576,-153.44114852,0.00027671,2]
[314346655,1708210239585,-500.0,0.00027671,2]
[314346656,1708210239596,-500.0,0.00027671,2]
[314346657,1708210239605,-504.01055325,0.00027671,2]
[314346658,1708210239615,-180.24851023,0.00027671,2]
[314346659,1708210239625,-563.48,0.00027671,2]
[314346660,1708210239636,-521.96,0.00027671,2]
[314346661,1708210239645,-500.0,0.00027671,2]
[314346662,1708210239654,-500.0,0.00027671,2]
[314346663,1708210239663,-500.0,0.00027671,2]
[314346664,1708210239673,-500.0,0.00027671,2]
[314346665,1708210239682,-500.0,0.00027671,2]
[314346666,1708210239691,-503.1545323,0.00027671,2]
[314346667,1708210239701,-500.0,0.00027671,2]
[314346668,1708210239710,-500.0,0.00027671,2]
[314346669,1708210239719,-500.0,0.00027671,2]
[314346670,1708210239728,-500.0,0.00027671,2]
[314346671,1708210239737,-500.0,0.00027671,2]
[314346672,1708210239746,-500.0,0.00027671,2]
[314346673,1708210239755,-500.0,0.00027671,2]
[314346674,1708210239765,-3514.22,0.00027671,2]
[314346675,1708210239774,-500.0,0.00027671,2]
[314346676,1708210239784,-500.0,0.00027671,2]
[314346677,1708210239795,-500.0,0.00027671,2]
[314346678,1708210239807,-2381.89,0.00027671,2]
[314346679,1708210239816,-500.0,0.00027671,2]
[314346680,1708210239825,-777.81,0.00027671,2]
[314346681,1708210239834,-500.0,0.00027671,2]
[314346682,1708210239843,-500.0,0.00027671,2]
[314346683,1708210239854,-3537.22,0.00027671,2]
[314346684,1708210239863,-500.0,0.00027671,2]
[314346685,1708210239871,-504.0187755,0.00027671,2]
[314346686,1708210239881,-500.0,0.00027671,2]
[314346687,1708210239891,-500.0,0.00027671,2]
[314346688,1708210239902,-500.0,0.00027671,2]
[314346689,1708210239912,-2545.31,0.00027671,2]
[314346690,1708210239920,-500.0,0.00027671,2]
[314346691,1708210239930,-850.89,0.00027671,2]
[314346692,1708210239939,-500.0,0.00027671,2]
[314346693,1708210239948,-4076.04,0.00027671,2]
[314346694,1708210239957,-500.0,0.00027671,2]
[314346695,1708210239966,-500.0,0.00027671,2]
[314346696,1708210239975,-500.0,0.00027671,2]
[314346697,1708210239984,-500.0,0.00027671,2]
[314346698,1708210239993,-311.36704535,0.00027671,2]
[314346699,1708210240002,-500.0,0.00027671,2]
[314346700,1708210240011,-672.49,0.00027671,2]
[314346701,1708210240021,-500.0,0.00027671,2]
[314346702,1708210240031,-500.0,0.00027671,2]
[314346703,1708210240042,-2391.4,0.00027671,2]
[314346704,1708210240051,-500.0,0.00027671,2]
[314346705,1708210240061,-517.07370122,0.00027671,2]
[314346706,1708210240070,-2317.01,0.00027671,2]
[314346707,1708210240079,-500.0,0.00027671,2]
[314346708,1708210240088,-502.26,0.00027671,2]
[314346709,1708210240099,-500.0,0.00027671,2]
[314346710,1708210240107,-665.62,0.00027671,2]
[314346711,1708210240117,-500.0,0.00027671,2]
[314346712,1708210240126,-500.0,0.00027671,2]
[314346713,1708210240135,-500.0,0.00027671,2]
[314346714,1708210240145,-500.0,0.00027671,2]
[314346715,1708210240154,-525.30971961,0.00027671,2]
[314346716,1708210240163,-29680.33152701,0.00027757,5]
[314346717,1708210240173,-621.386738,0.00027885,2]
[314346718,1708210240182,-264.42650796,0.00027945,2]
[314346719,1708210240191,-500.0,0.00027945,2]
[314346720,1708210240200,-604.47,0.00027945,2]
[314346721,1708210240209,-500.0,0.00027945,2]
[314346722,1708210240219,-295.36967243,0.00027945,2]
[314346723,1708210240228,-563.48,0.00027945,2]
[314346724,1708210240237,-521.96,0.00027945,2]
[314346725,1708210240247,-500.0,0.00027945,2]
[314346726,1708210240256,-500.0,0.00027945,2]
[314346727,1708210240265,-500.0,0.00027945,2]
[314346728,1708210240275,-500.0,0.00027945,2]
[314346729,1708210240284,-500.0,0.00027945,2]
[314346730,1708210240293,-500.0,0.00027945,2]
[314346731,1708210240302,-500.0,0.00027945,2]
[314346732,1708210240311,-500.0,0.00027945,2]
[314346733,1708210240320,-500.0,0.00027945,2]
[314346734,1708210240330,-3514.22,0.00027945,2]
[314346735,1708210240339,-500.0,0.00027945,2]
[314346736,1708210240348,-500.0,0.00027945,2]
[314346737,1708210240357,-500.0,0.00027945,2]
[314346738,1708210240366,-2381.89,0.00027945,2]
[314346739,1708210240376,-500.0,0.00027945,2]
[314346740,1708210240385,-777.81,0.00027945,2]
[314346741,1708210240395,-500.0,0.00027945,2]
[314346742,1708210240404,-416.38756066,0.00027945,2]
[314346743,1708210240412,-3537.22,0.00027945,2]
[314346744,1708210240422,-500.0,0.00027945,2]
[314346745,1708210240431,-500.0,0.00027945,2]
[314346746,1708210240440,-500.0,0.00027945,2]
[314346747,1708210240448,-2545.31,0.00027945,2]
[314346748,1708210240457,-500.0,0.00027945,2]
[314346749,1708210240466,-850.89,0.00027945,2]
[314346750,1708210240475,-500.0,0.00027945,2]
[314346751,1708210240484,-4076.04,0.00027945,2]
[314346752,1708210240492,-500.0,0.00027945,2]
[314346754,1708210240501,-500.0,0.00027945,2]
[314346756,1708210240510,-500.0,0.00027945,2]
[314346757,1708210240520,-635.23390049,0.00027945,2]
[314346758,1708210240529,-500.0,0.00027945,2]
[314346759,1708210240538,-672.49,0.00027945,2]
[314346760,1708210240547,-500.0,0.00027945,2]
[314346761,1708210240556,-500.0,0.00027945,2]
[314346762,1708210240565,-2391.4,0.00027945,2]
[314346763,1708210240574,-500.0,0.00027945,2]
[314346764,1708210240583,-2317.01,0.00027945,2]
[314346765,1708210240592,-502.26,0.00027945,2]
[314346766,1708210240602,-500.0,0.00027945,2]
[314346767,1708210240611,-665.62,0.00027945,2]
[314346768,1708210240620,-500.0,0.00027945,2]
[314346769,1708210240629,-500.0,0.00027945,2]
[314346770,1708210240638,-500.0,0.00027945,2]
[314346771,1708210240647,-154.147053,0.00028134,2]
[314346772,1708210240657,-238.989068,0.00028134,2]
[314346773,1708210240666,-224.618076,0.00028134,2]
[314346774,1708210240675,-167.458479,0.00028134,2]
[314346775,1708210240684,-164.616481,0.00028134,2]
[314346776,1708210240694,-224.618076,0.00028134,2]
[314346777,1708210240703,-178.826473,0.00028134,2]
[314346778,1708210240712,-164.616481,0.00028134,2]
[314346779,1708210240721,-224.618076,0.00028134,2]
[314346780,1708210240731,-238.989068,0.00028134,2]
[314346781,1708210240740,-218.446876,0.00028134,2]
[314346782,1708210240749,-604.47,0.00028219,2]
[314346783,1708210240758,-563.48,0.00028219,2]
[314346784,1708210240767,-521.96,0.00028219,2]
[314346785,1708210240776,-444.8,0.00028219,2]
[314346786,1708210240785,-500.0,0.00028219,2]
[314346787,1708210240795,-500.0,0.00028219,2]
[314346788,1708210240805,-410.34813149,0.00028219,2]
[314346789,1708210240815,-500.0,0.00028219,2]
[314346790,1708210240824,-500.0,0.00028219,2]
[314346791,1708210240834,-500.0,0.00028219,2]
[314346792,1708210240843,-500.0,0.00028219,2]
[314346793,1708210240854,-3514.22,0.00028219,2]
[314346794,1708210240863,-500.0,0.00028219,2]
[314346795,1708210240872,-500.0,0.00028219,2]
[314346796,1708210240881,-500.0,0.00028219,2]
[314346797,1708210240889,-2381.89,0.00028219,2]
[314346798,1708210240899,-500.0,0.00028219,2]
[314346799,1708210240908,-777.81,0.00028219,2]
[314346800,1708210240917,-3537.22,0.00028219,2]
[314346801,1708210240925,-500.0,0.00028219,2]
[314346802,1708210240934,-500.0,0.00028219,2]
[314346803,1708210240943,-500.0,0.00028219,2]
[314346804,1708210240952,-2545.31,0.00028219,2]
[314346805,1708210240961,-500.0,0.00028219,2]
[314346806,1708210240970,-850.89,0.00028219,2]
[314346807,1708210240980,-579.769935,0.00028219,2]
[314346808,1708210240989,-4076.04,0.00028219,2]
[314346809,1708210240998,-500.0,0.00028219,2]
[314346810,1708210241008,-500.0,0.00028219,2]
[314346811,1708210241017,-500.0,0.00028219,2]
[314346812,1708210241026,-500.0,0.00028219,2]
[314346813,1708210241035,-672.49,0.00028219,2]
[314346814,1708210241044,-500.0,0.00028219,2]
[314346815,1708210241054,-2391.4,0.00028219,2]
[314346816,1708210241063,-500.0,0.00028219,2]
[314346817,1708210241072,-500.0,0.00028219,2]
[314346818,1708210241081,-2317.01,0.00028219,2]
[314346819,1708210241090,-502.26,0.00028219,2]
[314346820,1708210241098,-500.0,0.00028219,2]
[314346821,1708210241107,-665.62,0.00028219,2]
[314346822,1708210241116,-500.0,0.00028219,2]
[314346823,1708210241125,-500.0,0.00028219,2]
[314346824,1708210241135,-500.0,0.00028219,2]
[314346825,1708210241144,-157.24139512,0.00028295,4]
[314346826,1708210241153,-154.147053,0.00028486,2]
[314346827,1708210241162,-238.989068,0.00028486,2]
[314346828,1708210241171,-167.458479,0.00028486,2]
[314346829,1708210241180,-218.446876,0.00028486,2]
[314346830,1708210241189,-238.989068,0.00028486,2]
[314346831,1708210241198,-604.47,0.00028493,2]
[314346832,1708210241207,-563.48,0.00028493,2]
[314346833,1708210241216,-521.96,0.00028493,2]
[314346834,1708210241226,-500.0,0.00028493,2]
[314346835,1708210241235,-500.0,0.00028493,2]
[314346836,1708210241244,-500.0,0.00028493,2]
[314346837,1708210241253,-458.0464762,0.00028493,2]
[314346838,1708210241262,-539.16,0.00028493,2]
[314346839,1708210241271,-500.0,0.00028493,2]
[314346840,1708210241281,-3514.22,0.00028493,2]
[314346841,1708210241290,-500.0,0.00028493,2]
[314346842,1708210241300,-500.0,0.00028493,2]
[314346843,1708210241309,-500.0,0.00028493,2]
[314346844,1708210241319,-2381.89,0.00028493,2]
[314346845,1708210241328,-500.0,0.00028493,2]
[314346846,1708210241337,-777.81,0.00028493,2]
[314346847,1708210241346,-3537.22,0.00028493,2]
[314346848,1708210241356,-337.80225645,0.00028493,2]
[314346850,1708210241365,-500.0,0.00028493,2]
[314346852,1708210241374,-2545.31,0.00028493,2]
[314346853,1708210241384,-500.0,0.00028493,2]
[314346854,1708210241393,-850.89,0.00028493,2]
[314346855,1708210241402,-4076.04,0.00028493,2]
[314346856,1708210241411,-500.0,0.00028493,2]
[314346857,1708210241420,-500.0,0.00028493,2]
[314346858,1708210241429,-500.0,0.00028493,2]
[314346859,1708210241439,-500.0,0.00028493,2]
[314346860,1708210241448,-672.49,0.00028493,2]
[314346861,1708210241457,-500.0,0.00028493,2]
[314346862,1708210241466,-2391.4,0.00028493,2]
[314346863,1708210241475,-500.0,0.00028493,2]
[314346864,1708210241486,-500.0,0.00028493,2]
[314346865,1708210241495,-2317.01,0.00028493,2]
[314346866,1708210241505,-502.26,0.00028493,2]
[314346867,1708210241514,-500.0,0.00028493,2]
[314346868,1708210241523,-665.62,0.00028493,2]
[314346869,1708210241607,-500.0,0.00028493,2]
[314346870,1708210241616,-500.0,0.00028493,2]
[314346871,1708210241626,-500.0,0.00028493,2]
[314346872,1708210241635,-1211.26696733,0.00028584,2]
[314346873,1708210241644,-164.616481,0.00028603,2]
[314346874,1708210241653,-164.616481,0.00028603,2]
[314346875,1708210241662,-604.47,0.00028767,2]
[314346876,1708210241671,-563.48,0.00028767,2]
[314346877,1708210241680,-521.96,0.00028767,2]
[314346878,1708210241689,-183.11041211,0.00028767,2]
[314346879,1708210241698,-500.0,0.00028767,2]
[314346880,1708210241707,-500.0,0.00028767,2]
[314346881,1708210241716,-500.0,0.00028767,2]
[314346882,1708210241725,-3514.22,0.00028767,2]
[314346883,1708210241734,-500.0,0.00028767,2]
[314346884,1708210241743,-444.72726313,0.00028767,2]
[314346885,1708210241753,-500.0,0.00028767,2]
[314346886,1708210241762,-2381.89,0.00028767,2]
[314346887,1708210241771,-777.81,0.00028767,2]
[314346888,1708210241780,-3537.22,0.00028767,2]
[314346889,1708210241789,-500.0,0.00028767,2]
[314346890,1708210241799,-2545.31,0.00028767,2]
[314346891,1708210241811,-500.0,0.00028767,2]
[314346892,1708210241820,-850.89,0.00028767,2]
[314346893,1708210241829,-4076.04,0.00028767,2]
[314346894,1708210241838,-500.0,0.00028767,2]
[314346895,1708210241848,-500.0,0.00028767,2]
[314346896,1708210241857,-500.0,0.00028767,2]
[314346897,1708210241866,-500.0,0.00028767,2]
[314346898,1708210241875,-672.49,0.00028767,2]
[314346899,1708210241886,-500.0,0.00028767,2]
[314346900,1708210241895,-2391.4,0.00028767,2]
[314346901,1708210241904,-500.0,0.00028767,2]
[314346902,1708210241913,-500.0,0.00028767,2]
[314346903,1708210241922,-2317.01,0.00028767,2]
[314346904,1708210241931,-502.26,0.00028767,2]
[314346905,1708210241941,-500.0,0.00028767,2]
[314346906,1708210241950,-665.62,0.00028767,2]
[314346907,1708210241959,-500.0,0.00028767,2]
[314346908,1708210241968,-500.0,0.00028767,2]
[314346909,1708210241977,-500.0,0.00028767,2]
[314346910,1708210241985,-154.147053,0.00028838,2]
[314346911,1708210241994,-238.989068,0.00028838,2]
[314346912,1708210242003,-167.458479,0.00028838,2]
[314346913,1708210242011,-218.446876,0.00028838,2]
[314346914,1708210242020,-238.989068,0.00028838,2]
[314346915,1708210242029,-155.0,0.00028863,2]
[314346916,1708210242038,-604.47,0.00029041,2]
[314346917,1708210242047,-563.48,0.00029041,2]
[314346918,1708210242056,-521.96,0.00029041,2]
[314346919,1708210242066,-500.0,0.00029041,2]
[314346920,1708210242074,-500.0,0.00029041,2]
[314346921,1708210242083,-500.0,0.00029041,2]
[314346922,1708210242092,-3514.22,0.00029041,2]
[314346923,1708210242100,-500.0,0.00029041,2]
[314346924,1708210242109,-500.0,0.00029041,2]
[314346925,1708210242118,-2381.89,0.00029041,2]
[314346926,1708210242127,-777.81,0.00029041,2]
[314346927,1708210242137,-3537.22,0.00029041,2]
[314346928,1708210242146,-500.0,0.00029041,2]
[314346929,1708210242155,-2545.31,0.00029041,2]
[314346930,1708210242164,-209.56,0.00029041,2]
[314346931,1708210242173,-850.89,0.00029041,2]
[314346932,1708210242182,-4076.04,0.00029041,2]
[314346933,1708210242191,-500.0,0.00029041,2]
[314346934,1708210242200,-500.0,0.00029041,2]
[314346935,1708210242209,-500.0,0.00029041,2]
[314346936,1708210242218,-500.0,0.00029041,2]
[314346937,1708210242227,-672.49,0.00029041,2]
[314346938,1708210242236,-437.865938,0.00029041,2]
[314346939,1708210242246,-2391.4,0.00029041,2]
[314346940,1708210242255,-500.0,0.00029041,2]
[314346941,1708210242264,-500.0,0.00029041,2]
[314346942,1708210242273,-2317.01,0.00029041,2]
[314346943,1708210242282,-502.26,0.00029041,2]
[314346944,1708210242291,-500.0,0.00029041,2]
[314346945,1708210242300,-665.62,0.00029041,2]
[314346946,1708210242310,-500.0,0.00029041,2]
[314346947,1708210242319,-500.0,0.00029041,2]
[314346948,1708210242328,-500.0,0.00029041,2]
[314346949,1708210242337,-164.616481,0.00029072,2]
[314346950,1708210242347,-164.616481,0.00029072,2]
[314346951,1708210242356,-154.147053,0.00029189,2]
[314346952,1708210242365,-238.989068,0.00029189,2]
[314346953,1708210242375,-167.458479,0.00029189,2]
[314346954,1708210242385,-238.989068,0.00029189,2]
[314346955,1708210242395,-218.446876,0.00029189,2]
[314346956,1708210242404,-620.0693369,0.00029279,2]
[314346957,1708210242414,-604.47,0.00029315,2]
[314346958,1708210242423,-563.48,0.00029315,2]
[314346959,1708210242433,-521.96,0.00029315,2]
[314346960,1708210242443,-500.0,0.00029315,2]
[314346961,1708210242452,-500.0,0.00029315,2]
[314346962,1708210242461,-3514.22,0.00029315,2]
[314346963,1708210242470,-500.0,0.00029315,2]
[314346964,1708210242478,-500.0,0.00029315,2]
[314346965,1708210242488,-2381.89,0.00029315,2]
[314346966,1708210242497,-777.81,0.00029315,2]
[314346967,1708210242506,-3537.22,0.00029315,2]
[314346968,1708210242515,-500.0,0.00029315,2]
[314346969,1708210242524,-2545.31,0.00029315,2]
[314346970,1708210242533,-850.89,0.00029315,2]
[314346971,1708210242542,-4076.04,0.00029315,2]
[314346972,1708210242551,-500.0,0.00029315,2]
[314346973,1708210242560,-500.0,0.00029315,2]
[314346974,1708210242570,-500.0,0.00029315,2]
[314346975,1708210242579,-500.0,0.00029315,2]
[314346976,1708210242588,-672.49,0.00029315,2]
[314346977,1708210242597,-2391.4,0.00029315,2]
[314346978,1708210242606,-500.0,0.00029315,2]
[314346979,1708210242615,-500.0,0.00029315,2]
[314346980,1708210242624,-2317.01,0.00029315,2]
[314346981,1708210242633,-502.26,0.00029315,2]
[314346982,1708210242642,-500.0,0.00029315,2]
[314346983,1708210242651,-665.62,0.00029315,2]
[314346984,1708210242660,-500.0,0.00029315,2]
[314346985,1708210242669,-500.0,0.00029315,2]
[314346986,1708210242678,-500.0,0.00029315,2]
[314346987,1708210242687,-157.24139512,0.00029383,4]
[314346988,1708210242696,-154.147053,0.00029541,2]
[314346989,1708210242705,-238.989068,0.00029541,2]
[314346990,1708210242714,-224.618076,0.00029541,2]
[314346991,1708210242723,-167.458479,0.00029541,2]
[314346993,1708210242732,-224.618076,0.00029541,2]
[314346994,1708210242741,-224.618076,0.00029541,2]
[314346995,1708210242750,-238.989068,0.00029541,2]
[314346996,1708210242758,-218.446876,0.00029541,2]
[314346997,1708210242767,-164.616481,0.00029541,2]
[314346998,1708210242776,-164.616481,0.00029541,2]
[314346999,1708210242785,-604.47,0.00029589,2]
[314347000,1708210242794,-563.48,0.00029589,2]
[314347001,1708210242806,-521.96,0.00029589,2]
[314347002,1708210242816,-500.0,0.00029589,2]
[314347003,1708210242824,-500.0,0.00029589,2]
[314347004,1708210242834,-3514.22,0.00029589,2]
[314347006,1708210242842,-500.0,0.00029589,2]
[314347008,1708210242851,-500.0,0.00029589,2]
[314347009,1708210242859,-2381.89,0.00029589,2]
[314347011,1708210242868,-777.81,0.00029589,2]
[314347014,1708210242879,-3537.22,0.00029589,2]
[314347015,1708210242889,-500.0,0.00029589,2]
[314347017,1708210242898,-2545.31,0.00029589,2]
[314347019,1708210242907,-850.89,0.00029589,2]
[314347021,1708210242917,-4076.04,0.00029589,2]
[314347023,1708210242926,-500.0,0.00029589,2]
[314347025,1708210242935,-500.0,0.00029589,2]
[314347027,1708210242944,-500.0,0.00029589,2]
[314347029,1708210242953,-500.0,0.00029589,2]
[314347032,1708210242962,-672.49,0.00029589,2]
[314347034,1708210242972,-2391.4,0.00029589,2]
[314347036,1708210242981,-500.0,0.00029589,2]
[314347038,1708210242990,-500.0,0.00029589,2]
[314347039,1708210242999,-2317.01,0.00029589,2]
[314347042,1708210243009,-502.26,0.00029589,2]
[314347044,1708210243018,-500.0,0.00029589,2]
[314347045,1708210243027,-665.62,0.00029589,2]
[314347047,1708210243036,-500.0,0.00029589,2]
[314347048,1708210243045,-500.0,0.00029589,2]
[314347050,1708210243054,-500.0,0.00029589,2]
[314347051,1708210243063,-604.47,0.00029863,2]
[314347052,1708210243072,-563.48,0.00029863,2]
[314347053,1708210243081,-521.96,0.00029863,2]
[314347054,1708210243090,-500.0,0.00029863,2]
[314347055,1708210243099,-500.0,0.00029863,2]
[314347056,1708210243108,-3514.22,0.00029863,2]
[314347058,1708210243117,-500.0,0.00029863,2]
[314347060,1708210243126,-2381.89,0.00029863,2]
[314347061,1708210243135,-777.81,0.00029863,2]
[314347062,1708210243144,-3537.22,0.00029863,2]
[314347063,1708210243154,-500.0,0.00029863,2]
[314347065,1708210243162,-2545.31,0.00029863,2]
[314347066,1708210243172,-850.89,0.00029863,2]